Cogmind - Beta 16.1 @@@ ROGUE MODE // 2026.04.13 @ 20:33:28 Player: skelll Result: Destroyed by Optimus with Helical Railgun Performance ------------- Evolutions (0) 0 Regions Visited (3) 600 Robots Destroyed (3) 15 Value Destroyed (95) 95 Prototype IDs (6) 120 Alien Tech Used (0) 0 Bonus (800) 800 TOTAL SCORE: 1630 Bonus ------- Registered with UFD 300 Met Optimus in HQ 500 Cogmind --------- Core Integrity 0/250 Matter 300/300 Energy 100/100 System Corruption 2% Temperature Cool (0) Movement Core (700) Ox13 Location -9/Scraptown Parts ------- > --- POWER (1) -------- (None) > --- PROPULSION (2) --- (None) > --- UTILITY (2) ------ High-capacity Storage Unit > --- WEAPON (2) ------- (None) > --- INVENTORY (20) --- Light Ion Engine Nuclear Core Improved Deuterium Engine Light Angular Momentum Engine Cesium-ion Thruster Cesium-ion Thruster Cesium-ion Thruster Cesium-ion Thruster Scrap Suit Enhanced Optical Array Improved Light Armor Plating Improved Light Armor Plating A0-MCA's Component Scanner Subdweller Machine Gun Flak Gun CPS Tube (2) CPS Tube (2) CPS Tube (2) Botcube Peak State ------------ > --- POWER ------------ Ion Engine > --- PROPULSION ------- Compact Wheel Compact Wheel > --- UTILITY ---------- High-capacity Storage Unit Force Field > --- WEAPON ----------- Riot Gun Datajack > --- INVENTORY -------- Light Ion Engine Nuclear Core Improved Deuterium Engine Light Angular Momentum Engine Cesium-ion Thruster Cesium-ion Thruster Cesium-ion Thruster Cesium-ion Thruster Enhanced Optical Array Improved Light Armor Plating Improved Light Armor Plating A0-MCA's Component Scanner Small Laser Small Laser Subdweller Machine Gun Flak Gun CPS Tube CPS Tube CPS Tube Botcube [Rating: 20] Favorites ----------- Power Ion Engine Engine Ion Engine Propulsion Compact Wheel Wheel Compact Wheel Flight Unit Cesium-ion Thruster Utility Force Field Device Force Field Storage High-capacity Storage Unit Weapon Riot Gun Energy Gun Riot Gun Ballistic Gun Subdweller Machine Gun Special Melee Weapon Datajack Build | -11 -10 -10 -9 ------- Run | Yrd Mat Sub Scr Slots Evolved . | . . . . Power . | . . . . Propulsion . | . . . . Utility . | . . . . Weapon . | . . . . Parts Attached 15 | 6 . 3 6 Power 1 | 1 . . . Engine 1 | 1 . . . Core . | . . . . Reactor . | . . . . Propulsion 4 | 2 . . 2 Treads . | . . . . Leg . | . . . . Wheel 2 | 2 . . . Hover . | . . . . Flight 2 | . . . 2 Utility 5 | 1 . 1 3 Device 2 | . . 1 1 Storage 3 | 1 . . 2 Processor . | . . . . Hackware . | . . . . Protection . | . . . . Artifact . | . . . . Weapon 5 | 2 . 2 1 Energy Gun 2 | 1 . 1 . Energy Cannon . | . . . . Ballistic Gun 2 | 1 . 1 . Ballistic Cannon . | . . . . Launcher . | . . . . Special Weapon . | . . . . Impact Weapon . | . . . . Slashing Weapon . | . . . . Piercing Weapon . | . . . . Special Melee Weapon 1 | . . . 1 Unidentified Prototypes . | . . . . Parts Lost 6 | . . . 6 Power 1 | . . . 1 Propulsion 2 | . . . 2 Utility 1 | . . . 1 Weapon 2 | . . . 2 Highest Loss Streak 6 | . . . 6 To Critical Strikes . | . . . . Average Backups 12 | 1 3 3 15 Power 2 | . 1 1 3 Propulsion 2 | . 1 . 3 Utility 2 | . . . 3 Weapon 3 | . 1 1 3 Tool/Special . | . . . . Unused Backups 19 | . . 2 17 Power 5 | . . 1 4 Propulsion 3 | . . 1 2 Utility 6 | . . . 6 Weapon 2 | . . . 2 Tool/Special 3 | . . . 3 Average Slot Usage (%) 92 | . 85 97 91 Engine 14 | . 14 14 14 Wheel 27 | . 28 28 27 Device 13 | . . 11 13 Storage 14 | . 14 14 14 Energy Gun 10 | . 14 9 10 Ballistic Gun 3 | . 14 18 . Special Melee Weapon 8 | . . . 10 Peak Build Rating 20 | 6 6 12 20 Average Rating 14 | 4 6 10 16 On Entrance 6 | . 6 6 12 Avg Prop Armor Cover (%) . | . . . . Naked Turns . | . . . . Heaviest Build 56 | 12 12 19 56 Greatest Support 32 | 32 32 32 32 Greatest Overweight (x) 15 | . . . 15 Average Overweight (x) . | . . . . Largest Inventory Capacity 20 | 8 8 8 20 Average Capacity 16 | 6 8 8 18 Most Carried 20 | 3 3 8 20 Average Carried 14 | 1 3 6 16 Final Capacity 20 | 8 8 8 20 Final Carried 20 | 3 3 8 20 Class Distribution -------------------- 100% | Mutant Dominant Class ---------------- Mutant | -10/Materials Mutant | -10/Subcaves Mutant | -9/Scraptown Resources | -11 -10 -10 -9 ----------- Run | Yrd Mat Sub Scr Matter Collected 387 | 260 . 37 90 Remotely . | . . . . Salvage Created 95 | . . 95 . Parts 9 | . . 9 . Haulers Intercepted . | . . . . Recyclers Shooed . | . . . . Parts Field Recycled . | . . . . Retrieved Matter . | . . . . Parts Self-Destructed 13 | . . 13 . Prevented 1 | . . 1 . Parts Restored . | . . . . Kills | -11 -10 -10 -9 ------- Run | Yrd Mat Sub Scr Combat Hostiles Destroyed 3 | . . 3 . Guns 2 | . . 2 . Classes Destroyed 3 | . . 3 . Swarmer 1 | . . 1 . Sentry 1 | . . 1 . Subdweller 1 | . . 1 . Best Kill Streak 2 | . . 2 . Combat Bots Only 2 | . . 2 . Max Kills in Single Turn 1 | . . 1 . Gunslinging . | . . . . Exploded . | . . . . Melee . | . . . . Uniques/NPCs Destroyed . | . . . . Combat | -11 -10 -10 -9 -------- Run | Yrd Mat Sub Scr Hostile Shots Fired 54 | . . 8 46 Missed 23 | . . 4 19 Hits 31 | . . 4 27 Melee 2 | . . . 2 Projectile 29 | . . 4 25 Critical Strikes 1 | . . . 1 Damage Taken 600 | . . 45 555 Core 270 | . . 15 255 Absorbed by Shields 37 | . . . 37 Core Remaining (%) 100 | 100 . . . Volleys Fired 6 | . . 4 2 Largest 2 | . . 2 1 Hottest 80 | . . 80 50 Shots Fired 10 | . . 8 2 Gun 10 | . . 8 2 Cannon . | . . . . Launcher . | . . . . Special . | . . . . Kinetic 4 | . . 4 . Thermal 1 | . . 1 . Explosive . | . . . . Electromagnetic 5 | . . 3 2 Robot Hit Streak 6 | . . 6 . Robot Miss Streak 4 | . . 1 4 Penetration Max . | . . . . Secondary Targets . | . . . . Shots Hit Robots 7 | . . 7 . Core Hits 5 | . . 5 . Critical Kills 1 | . . 1 . Critical Parts Destroyed . | . . . . Critical Strikes 1 | . . 1 . Destroy 1 | . . 1 . Melee Attacks . | . . . . Impact . | . . . . Slashing . | . . . . Piercing . | . . . . Sneak Attacks . | . . . . Combat Hostiles . | . . . . Follow-up Attacks . | . . . . Damage Inflicted 116 | . . 116 . Guns 116 | . . 116 . Cannons . | . . . . Explosions . | . . . . Melee . | . . . . Ramming . | . . . . Kinetic 59 | . . 59 . Thermal 10 | . . 10 . Explosive . | . . . . Electromagnetic 47 | . . 47 . Impact . | . . . . Slashing . | . . . . Piercing . | . . . . Highest Corruption 2 | . 1 1 2 Average Corruption 1 | . 1 1 1 Corruption Purged . | . . . . Corruption Blocked . | . . . . Effects 3 | . . 3 . Energy Discharges 1 | . . 1 . Data Loss (major) 2 | . . 2 . Overload Shots . | . . . . Overflow Damage . | . . . . Projectiles . | . . . . Explosions . | . . . . Melee . | . . . . Knockbacks . | . . . . Impact . | . . . . Kinetic . | . . . . Secondary . | . . . . Self-Inflicted Damage . | . . . . Shots . | . . . . Rammed . | . . . . Targets Rammed . | . . . . Kicked . | . . . . Crushed . | . . . . Highest Temperature 10 | . . . 10 Average Temperature 7 | . . . 7 Received Heat Transfer 18 | . . 18 . Siege Activations . | . . . . Martial Activations . | . . . . Shielding Activations . | . . . . Robots Disrupted . | . . . . Combat Hostiles . | . . . . Robots Corrupted . | . . . . Combat Hostiles . | . . . . Parts Fried . | . . . . Impact Corruptions . | . . . . Robots Melted . | . . . . Combat Hostiles . | . . . . Parts Melted . | . . . . Heat Transferred 25 | . . 25 . Parts Sabotaged . | . . . . Parts Stolen . | . . . . Parts Stripped . | . . . . Power Chain Reactions . | . . . . Alert | -11 -10 -10 -9 ------- Run | Yrd Mat Sub Scr Maximum Alert Level . | . . . . Low Security (%) 100 | 100 100 . . Level 1 . | . . . . Level 2 . | . . . . Level 3 . | . . . . Level 4 . | . . . . Level 5 . | . . . . High Security . | . . . . Max Security . | . . . . Peak Influence . | . . . . Initial . | . . . . Average . | . . . . Influence Increases 40 | . . 40 . Destroy 0b10 Robot/C 40 | . . 40 . Influence Decreases 40 | . . 30 10 Entered New Map 10 | . . . 10 Time Decay 30 | . . 30 . Squads Dispatched 1 | . 1 . . Investigation 1 | . 1 . . Extermination . | . . . . Reinforcement . | . . . . Assault . | . . . . Garrison . | . . . . Intercept . | . . . . Searches Triggered . | . . . . Construction Impeded . | . . . . Haulers Reinforced . | . . . . Active Scanning Responses . | . . . . Cargo Convoy Interrupts . | . . . . Stealth | -11 -10 -10 -9 --------- Run | Yrd Mat Sub Scr Distress Signals . | . . . . Communications Jammed . | . . . . Distress Signals . | . . . . Times Spotted 14 | . . 5 9 Peak Tracking Total 9 | . . 2 9 Tactical Retreats . | . . . . Traps | -11 -10 -10 -9 ------- Run | Yrd Mat Sub Scr Traps Triggered . | . . . . Indirectly . | . . . . Trap Hack Attempts . | . . . . Triggered . | . . . . Disarmed . | . . . . Reprogrammed . | . . . . Reused . | . . . . Traps Extracted . | . . . . Installed . | . . . . Triggered . | . . . . Machines | -11 -10 -10 -9 ---------- Run | Yrd Mat Sub Scr Machines Disabled 1 | . . . 1 Max in Single Turn 1 | . . . 1 Machines Repaired . | . . . . Machines Dismantled . | . . . . Machines Sabotaged . | . . . . Overloaded Fab Kills . | . . . . Hacking | -11 -10 -10 -9 --------- Run | Yrd Mat Sub Scr Machines Accessed 6 | . 1 . 5 Terminals 1 | . 1 . . Fabricators . | . . . . Repair Stations . | . . . . Recycling Units . | . . . . Scanalyzers . | . . . . Garrison Access . | . . . . Total Hacks 39 | . 4 . 35 Successful 35 | . . . 35 Failed 4 | . 4 . . Catastrophic . | . . . . Database Lockouts . | . . . . Manual . | . . . . Terminals 4 | . 4 . . Fabricators . | . . . . Repair Stations . | . . . . Recycling Units . | . . . . Scanalyzers . | . . . . Garrison Access . | . . . . Terminal Hacks 35 | . . . 35 Record 34 | . . . 34 Proto ID Catalog 1 | . . . 1 Fabricator Hacks . | . . . . Repair Station Hacks . | . . . . Recycling Unit Hacks . | . . . . Scanalyzer . | . . . . Garrison Access Hacks . | . . . . Unauthorized Hacks . | . . . . Terminals . | . . . . Fabricators . | . . . . Repair Stations . | . . . . Recycling Units . | . . . . Scanalyzers . | . . . . Garrison Access . | . . . . Data Cores Recovered . | . . . . Used . | . . . . Hacking Detections 1 | . 1 . . Full Trace Events 1 | . 1 . . Feedback Events 1 | . 1 . . Corruption 1 | . 1 . . Feedback Blocked . | . . . . Robot Schematics Acquired . | . . . . Robots Built . | . . . . Authchips . | . . . . Time . | . . . . Total Robot Build Rating . | . . . . Part Schematics Acquired . | . . . . Parts Built . | . . . . Authchips . | . . . . Time . | . . . . Total Part Build Rating . | . . . . Part Studies Acquired . | . . . . Parts Repaired . | . . . . Time . | . . . . Parts Recycled . | . . . . Recycled Matter . | . . . . Retrieved Matter . | . . . . Retrieved Components . | . . . . Parts Scanalyzed . | . . . . Part Schematics Acquired . | . . . . Parts Damaged . | . . . . Bothacking | -11 -10 -10 -9 ------------ Run | Yrd Mat Sub Scr Used RIF Installer . | . . . . Robots Hacked . | . . . . Non-combat . | . . . . Combat . | . . . . Robot Hacks Applied . | . . . . Relay Couplers Released . | . . . . Fabnet Peak Effective % . | . . . . Robots Rewired . | . . . . Allies Hacked . | . . . . Hacks Repelled . | . . . . Allies | -11 -10 -10 -9 -------- Run | Yrd Mat Sub Scr Total Allies . | . . . . Largest Group . | . . . . Highest-Rated Group . | . . . . Highest-Rated Ally . | . . . . Total Orders . | . . . . Ally Attacks . | . . . . Total Damage . | . . . . Kills . | . . . . Allies Corrupted . | . . . . Allies Melted . | . . . . Intel | -11 -10 -10 -9 ------- Run | Yrd Mat Sub Scr Active Infowar (turns) 234 | . . 234 . Optics 234 | . . 234 . Robot Analysis Total . | . . . . Derelict Logs Recovered 2 | . . . 2 Drone Launches . | . . . . Drone Recoveries . | . . . . Exploration | -11 -10 -10 -9 ------------- Run | Yrd Mat Sub Scr Turns Passed 2627 | 59 51 379 2138 Spaces Moved 2272 | 48 52 302 1870 Core 3 | 1 . . 2 Treads . | . . . . Legs . | . . . . Wheels 2267 | 47 52 302 1866 Hover . | . . . . Flight 2 | . . . 2 Fastest Speed 50 | 50 100 100 100 Average Speed 109 | 98 100 100 111 Slowest Speed 800 | 100 100 100 800 Overloaded Moves . | . . . . Propulsion Burnouts . | . . . . Robots Hopped . | . . . . Potential Cave-ins . | . . . . Cave-ins Triggered . | . . . . Exploration Rate (%) 29 | 3 8 24 84 Regions Visited 3 Branch Regions 2 Pre-discovered Areas . | . . . . Known Exits Taken . | . . . . Unknown Exits Taken 3 | 1 1 1 . Scrap Searched 3 | . . 1 2 Spaces Dug . | . . . . Terrain Destroyed . | . . . . Melee . | . . . . Projectile . | . . . . AOE . | . . . . Terrain Rammed . | . . . . Walls Destroyed . | . . . . Machines Disabled . | . . . . Actions | -11 -10 -10 -9 --------- Run | Yrd Mat Sub Scr Total 2407 | 56 51 372 1928 Wait 65 | . . 53 12 Move 2269 | 47 51 301 1870 Hop . | . . . . Pick Up 28 | 3 . 6 19 Fast Attach 12 | 6 . 3 3 Attach 4 | . . . 4 Detach 5 | . . 1 4 Swap 2 | . . . 2 Drop 16 | . . 4 12 Fire 6 | . . 4 2 Melee . | . . . . Ram . | . . . . Kick . | . . . . Crush . | . . . . Escape Stasis . | . . . . Rewire . | . . . . Trap . | . . . . Miscellaneous . | . . . . Route ------- -11/Scrapyard -10/Materials -10/Subcaves -9/Scraptown (discovered 2 exits: [*Fac x2]) History --------- Turn | Location | Event 18 | -11/Scrapyard | Discovered new exit (range 15) 60 | -11/Scrapyard | Entered Materials 61 | -10/Materials | Met a group of wandering Federalists 109 | -10/Materials | Discovered new exit (range 3) 111 | -10/Materials | Entered Subcaves 111 | -10/Subcaves | Accompanied by 3 allies 112 | -10/Subcaves | Continued accompanying wandering Federalists (6) 112 | -10/Subcaves | Approached by a straggling Scientist 139 | -10/Subcaves | A swath of the cavern ceiling suddenly collapsed 313 | -10/Subcaves | Wandering Federalist uncovered a shortcut to Scraptown 326 | -10/Subcaves | Build established: Mutant 490 | -10/Subcaves | Entered Scraptown 490 | -9/Scraptown | System corruption cleaned by C-Scrubber 762 | -9/Scraptown | Scanned Subdweller tech in exchange for log data 765 | -9/Scraptown | Learned Research stockpile data 790 | -9/Scraptown | Heard Great Nut preacher, LISTEN AND RECITE! 803 | -9/Scraptown | Visited Assassins FH 832 | -9/Scraptown | Visited Red Mages 863 | -9/Scraptown | Visited Fellowship of the Rings 919 | -9/Scraptown | Visited Supply Room 1236 | -9/Scraptown | Visited UFD Registry 1254 | -9/Scraptown | Visited SPCMW 1285 | -9/Scraptown | Visited Comm Corps 1392 | -9/Scraptown | Discovered new exit (range 5) 1848 | -9/Scraptown | Registered with UFD as "Electrochassis" 1904 | -9/Scraptown | Visited Botcube Research 1947 | -9/Scraptown | Visited Curators Association 1979 | -9/Scraptown | Visited A0-MCA Data Center 2009 | -9/Scraptown | Given a D+ rating by A0-MCA 2014 | -9/Scraptown | Found A0-MCA's Component Scanner 2061 | -9/Scraptown | Found Botcube 2137 | -9/Scraptown | Visited Cartography Club 2332 | -9/Scraptown | Found Scrap Suit 2388 | -9/Scraptown | Discovered new exit (range 5) 2458 | -9/Scraptown | Met Optimus 2458 | -9/Scraptown | Accepted into 0bPrime 2557 | -9/Scraptown | Visited Science Guys 2600 | -9/Scraptown | Civil war broke out across Scraptown 2602 | -9/Scraptown | Attacked by Scraptown defenders 2616 | -9/Scraptown | Core integrity fell below 50% 2625 | -9/Scraptown | Core integrity fell below 20% 2628 | -9/Scraptown | Destroyed by Optimus with Helical Railgun Last Messages --------------- 02611_ 2B-ZOD(c) switches sides. 02612_ H1-X1L(h) destroyed. 02612_ Slug penetrates YJ-GMR(x). 02612_ Machine disabled. 02612_ Force Field destroyed. 02613_ VE-EFV(E) destroyed. 02614_ Com. Wheel destroyed. 02615_ Penetrated by Slug. 02615_ Slug penetrates Machine. 02619_ Bolt penetrates Machine. 02621_ Slug penetrates 2B-ZOD(c). 02621_ 2B-ZOD(c) destroyed. 02621_ Slug penetrates Machine. 02621_ Bolt penetrates Machine. 02623_ Penetrated by Slug. 02624_ Ion Engine destroyed. 02624_ Bolt penetrates YJ-GMR(x). 02624_ Datajack destroyed. 02625_ Operating Theater damaged. 02626_ RD-BNK: "RECYCLER ON THE LOSE! LET'S GO!" Map ----- +----------------------------------------------------+ | "#?? ???? | | "## ??? | | ??? | | """""""""""""""""""""""""""" "## ""????? | | """""""""""""""""""""""""""" "#?? " """????? | | ""###### ################"" "#???"" ???????? | | ""# ##????????#"" "#?????????????? | | ""# X"#????????#"" "#?????????????? | | ""# "" "" ##????????#"" "#??? " "??????? | | ""# "" "" X"#??????###"" "#?? ????? | | ""# " " ######### #"" =## ???? | | "" "" [=!% ???? | | "" "" %![ [## ???? | | ""# " " ######### #""![[ x"#?? " " "????? | | ""# "" "" ""#??????###"" "#??? "????????? | | ""# "" "" ##???????##"" "##????????????? | | ""# X"#????????" " ! ;#############? | | ""# ##????????#" % !% ## "&&&""""""#? | | ""###### ################ 3 ="## "" """"""#? | | """"""""""""?"""""""""""""" "## "|"""#? | | """"""""""""""" """""""" """ "#? | | ## "" X"#? | | =% "## "" "#? | | E "## ""#? | | g ## " ""#? | | @p # "" """#? | | " """"""""""" """"" " " "" ## """"" """#? | | # ##########? ??########; ;##### ;#" """""""""#? | | ? ???????????????????? ???# ##############? | | ? ?????????????????? ??# #?????????????? | | ? ????????????????""r m?# #?????????????? | | ??"" ????????????????"" " r?# #?????????????? | | ????????????????????#"" " a## #?????????????? | | ?????????????????????"""" t## #?????????????? | | ?????????????????????"" u## ?????????????? | | ??????????????????????" k## ?????????????? | | ?????????????????????? ? " ### ?????????????? | | ????????????????????????""""""?# ?????????????? | | ?????????????????????????#?###?# ?????????????? | | ???????????????????????????????? #?????????????? | | ?????????????????????????????????????????????????? | | ?????????????????????????????????????????????????? | | ?????????????????????????????????????????????????? | | ?????????????????????????????????????????????????? | | ?????????????????????????????????????????????????? | | ?????????????????????????????????????????????????? | | ?????????????????????????????????????????????????? | | ?????????????????????????????????????????????????? | | ?????????????????????????????????????????????????? | | ?????????????????????????????????????????????????? | +----------------------------------------------------+ Best States ------------- Heat Dissipation 25 Energy Generation 10 Energy Capacity 250 Matter Stores 300 Matter Capacity 300 Sight Range 21 Terrain Scan Density 10 Evasion (%) 40 Item Schematics ----------------- None Robot Schematics ------------------ None Fabricated ------------ Nothing Repaired ---------- Nothing Studied --------- None Alien Tech Used ----------------- None Achievements -------------- Civilization 2243 Link The Feds Spot Them First Strength In Numbers Challenges ------------ None Game ------ Seed RingAnalysisLegs Manual? 0 Play Time 00:58:33 Cumulative 13.8 hours Start 2026.04.13 @ 02:30:39 End 2026.04.13 @ 20:33:28 Sessions 3 Manual Loads 0 Difficulty Rogue Special Mode None Game No. 24 Rogue 24 Adventurer 0 Explorer 0 Win Type - Total 0 Types 0/0/0/0/0/0/0/0/0/0 Lore% 14 Gallery% 13 Achievement% 9 Wizard Run 0 Options --------- Layout 1 ASCII 0 Keyboard 1 Movement Arrows Keybinds 0 Fullscreen 2 Font 24/Smallcaps Map View 50x35 Zoom Use 0% Tactical HUD 1 Map Filters NONE Filters NONE Steam 1 RUN: aeb91ce3-7b14-4ae9-8b71-0fcc6a4c9d97